Cogmind - Beta 17.1 @@@ ROGUE MODE // 2026.09.18 @ 06:10:29 Player: Clog Result: Destroyed by H-66 Slayer with Gauss Rifle Performance ------------- Evolutions (5) 2500 Regions Visited (8) 1600 Robots Destroyed (111) 555 Value Destroyed (4016) 4016 Prototype IDs (4) 80 Alien Tech Used (0) 0 Bonus (3324) 3324 TOTAL SCORE: 12075 Bonus ------- High Alert Combat Kills 598 Follower Combat Kills 1926 Registered with UFD 300 Met Optimus in HQ 500 Cogmind --------- Core Integrity 0/1000 Matter 202/300 Energy 98/100 System Corruption 12% Temperature Cool (0) Movement Core (50) Location -5/Factory Parts ------- > --- POWER (2) -------- (None) > --- PROPULSION (5) --- (None) > --- UTILITY (6) ------ Propulsion Shielding > --- WEAPON (4) ------- (None) > --- INVENTORY (5) ---- Light Angular Momentum Engine Overtuned Coil Gun Overtuned Coil Gun Advanced KE Penetrator Rocket Launcher Peak State ------------ > --- POWER ------------ Quantum Reactor > --- PROPULSION ------- Carbon-fiber Leg Improved Titanium Leg Flexi-carbon Leg Flexi-carbon Leg Flexi-carbon Leg > --- UTILITY ---------- Coolant Injector Large Storage Unit Improved Signal Interpreter Improved Melee Analysis Suite Improved Actuator Array Centrium Medium Armor Plating > --- WEAPON ----------- Subdweller Shrapnel Launcher Ripper Companion Sword Phasing Sabre > --- INVENTORY -------- Light Angular Momentum Engine Carbon-fiber Leg Carbon-fiber Leg Carbon-fiber Leg Carbon-fiber Leg Improved Light Armor Plating Improved Medium Armor Plating Proton Cannon KE Penetrator Overtuned Coil Gun Overtuned Coil Gun Advanced KE Penetrator Rocket Launcher Remote Datajack [Rating: 81] Favorites ----------- Power Ion Engine Engine Ion Engine Power Core Fission Core Reactor Quantum Reactor Propulsion Light Treads Treads Light Treads Leg Carbon-fiber Leg Flight Unit Cesium-ion Thruster Utility Large Storage Unit Device Microactuators Storage Large Storage Unit Processor Improved Signal Interpreter Protection Improved Medium Armor Plating Weapon Companion Sword Energy Gun Medium Laser Energy Cannon Plasma Cannon Ballistic Gun Barrage Gun Ballistic Cannon Advanced Assault Cannon Launcher Subdweller Shrapnel Launcher Special Weapon Remote Datajack Impact Weapon Power Maul Slashing Weapon Companion Sword Build | -11 -10 -10 -9 -6 -6 -6 -6 -5 ------- Run | Yrd Mat Sub Scr Fac Ext Cet Arc Fac Slots Evolved 10 | . . . . 8 . . . 2 Power 1 | . . . . . . . . 1 Propulsion 3 | . . . . 3 . . . . Utility 4 | . . . . 4 . . . . Weapon 2 | . . . . 1 . . . 1 Parts Attached 100 | . 2 11 13 19 37 5 1 12 Power 8 | . . 1 1 1 2 1 . 2 Engine 4 | . . 1 1 . 1 . . 1 Core 3 | . . . . 1 1 . . 1 Reactor 1 | . . . . . . 1 . . Propulsion 41 | . 1 3 4 7 18 . 1 7 Treads 8 | . . 2 4 2 . . . . Leg 32 | . 1 1 . 5 18 . 1 6 Wheel . | . . . . . . . . . Hover . | . . . . . . . . . Flight 1 | . . . . . . . . 1 Utility 23 | . 1 1 1 7 10 1 . 2 Device 8 | . . . . 5 3 . . . Storage 1 | . . 1 . . . . . . Processor 2 | . . . . 1 1 . . . Hackware . | . . . . . . . . . Protection 12 | . 1 . 1 1 6 1 . 2 Artifact . | . . . . . . . . . Weapon 28 | . . 6 7 4 7 3 . 1 Energy Gun 2 | . . 1 1 . . . . . Energy Cannon 2 | . . . 2 . . . . . Ballistic Gun 9 | . . 3 3 1 1 1 . . Ballistic Cannon 1 | . . . 1 . . . . . Launcher 2 | . . 1 . . . 1 . . Special Weapon 3 | . . 1 . 1 . 1 . . Impact Weapon 1 | . . . . 1 . . . . Slashing Weapon 8 | . . . . 1 6 . . 1 Piercing Weapon . | . . . . . . . . . Special Melee Weapon . | . . . . . . . . . Unidentified Prototypes 4 | . . . . 2 . 2 . . Parts Lost 36 | . 1 4 . 1 8 4 1 17 Power 4 | . . 1 . . 1 . . 2 Propulsion 20 | . 1 1 . 1 3 3 1 10 Utility 5 | . . . . . 3 . . 2 Weapon 7 | . . 2 . . 1 1 . 3 Highest Loss Streak 13 | . 1 3 . 1 7 4 1 13 To Critical Strikes 1 | . . 1 . . . . . . Average Backups 12 | 5 7 11 13 12 14 13 14 13 Power 1 | 1 1 1 1 1 1 1 1 1 Propulsion 3 | 3 3 3 2 2 3 3 4 3 Utility 1 | . . 1 1 . 1 2 2 1 Weapon 5 | 1 2 4 6 6 6 6 6 5 Tool/Special . | . . . . . . . . . Unused Backups 32 | . . . 12 10 2 1 1 6 Power 4 | . . . 1 1 . 1 . 1 Propulsion 9 | . . . 3 3 2 . . 1 Utility 12 | . . . 5 4 . . 1 2 Weapon 7 | . . . 3 2 . . . 2 Tool/Special . | . . . . . . . . . Average Slot Usage (%) 94 | . 88 98 99 90 89 97 98 85 Engine 8 | . 14 14 14 2 . 3 . . Core 1 | . . . . 3 4 . . 3 Treads 18 | . . 23 28 26 . . . . Leg 9 | . 26 4 . 4 26 30 31 26 Device 5 | . . . . 11 16 13 13 10 Storage 10 | . 14 14 14 6 6 6 6 4 Processor 3 | . . . . 5 6 13 13 10 Protection 10 | . 4 14 13 7 5 6 6 4 Energy Gun 4 | . 14 12 4 . . . . . Energy Cannon 3 | . . . 8 5 . . . . Ballistic Gun 8 | . 14 12 14 5 . . . . Slashing Weapon 5 | . . . . 5 16 19 19 15 Peak Build Rating 81 | 6 7 11 26 69 74 79 79 81 Average Rating 36 | 6 6 9 20 54 64 71 78 72 On Entrance 38 | 6 6 7 11 26 66 65 78 79 Avg Prop Armor Cover (%) 4 | . . . . . . . . 4 Naked Turns 39 | . . . . . . . . 39 Heaviest Build 71 | 12 13 38 47 60 53 65 65 71 Greatest Support 112 | 20 20 40 48 112 96 95 95 95 Greatest Overweight (x) 1 | . 1 . 1 . . . . 1 Average Overweight (x) . | . . . . . . . . . Largest Inventory Capacity 15 | 8 8 15 15 15 15 15 15 15 Average Capacity 14 | 8 8 13 15 15 15 15 15 14 Most Carried 15 | 6 8 15 15 15 15 15 15 15 Average Carried 13 | 5 7 11 14 13 14 13 14 13 Final Capacity 15 | 8 8 15 15 15 15 15 15 5 Final Carried 15 | 6 8 15 14 14 15 14 15 5 Class Distribution -------------------- 69% | Mutant 18% | Scavenger-Gladiator 8% | Commander-Gladiator Dominant Class ---------------- Mutant | -10/Materials Mutant | -10/Subcaves Mutant | -9/Scraptown Mutant | -6/Factory Commander-Gladiator | -6/Extension Scavenger-Gladiator | -6/Cetus Scavenger-Gladiator | -6/Archives Scavenger-Gladiator | -5/Factory Resources | -11 -10 -10 -9 -6 -6 -6 -6 -5 ----------- Run | Yrd Mat Sub Scr Fac Ext Cet Arc Fac Matter Collected 2857 | 257 50 300 134 1023 725 192 40 136 Remotely . | . . . . . . . . . Salvage Created 5478 | 110 147 440 . 1056 2126 25 209 1365 Parts 262 | 16 13 30 . 50 77 2 12 62 Haulers Intercepted 1 | . . . . . . . . 1 Recyclers Shooed 3 | 1 . . . . . . . 2 Parts Field Recycled . | . . . . . . . . . Retrieved Matter . | . . . . . . . . . Parts Self-Destructed 20 | . . 20 . . . . . . Prevented . | . . . . . . . . . Parts Restored . | . . . . . . . . . Kills | -11 -10 -10 -9 -6 -6 -6 -6 -5 ------- Run | Yrd Mat Sub Scr Fac Ext Cet Arc Fac Combat Hostiles Destroyed 78 | . 5 14 . 9 28 1 2 19 Melee 47 | . . . . 9 21 1 2 14 Guns 18 | . 5 12 . . 1 . . . AOE 13 | . . 2 . . 6 . . 5 Classes Destroyed 19 | 1 3 2 . 7 5 . . 1 Worker 3 | . . . . 2 . . . 1 Builder 4 | . 1 . . . . . . 3 Tunneler 5 | 5 . . . . . . . . Hauler 1 | . . . . . . . . 1 Recycler 12 | . . . . 4 6 . . 2 Operator 2 | . . . . 1 . . 1 . Watcher 7 | . . . . 2 . 1 . 4 Swarmer 14 | . 3 5 . . . . . 6 Grunt 29 | . 2 2 . 5 12 . . 8 Brawler 1 | . . . . . 1 . . . Duelist 5 | . . . . 1 3 . . 1 Protector 2 | . . . . . 2 . . . Sentry 11 | . . 1 . . 7 . 2 1 Demolisher 2 | . . . . 2 . . . . Specialist 2 | . . . . . 1 . . 1 Hunter 1 | . . . . . 1 . . . Programmer 3 | . . . . . 1 . . 2 Cetus Guard 1 | . . . . . . 1 . . Subdweller 6 | . . 6 . . . . . . Assembled 1 | . . . . 1 . . . . Best Kill Streak 7 | 4 4 4 . 5 7 1 1 6 Combat Bots Only 7 | . 3 4 . 3 7 1 1 4 Max Kills in Single Turn 3 | 1 2 2 . 1 3 1 1 3 Gunslinging 1 | . . 1 . . . . . . Exploded 3 | . . 1 . . 3 . . 1 Melee 1 | . . . . 1 1 1 1 1 Uniques/NPCs Destroyed . | . . . . . . . . . Combat | -11 -10 -10 -9 -6 -6 -6 -6 -5 -------- Run | Yrd Mat Sub Scr Fac Ext Cet Arc Fac Hostile Shots Fired 862 | . 31 82 . 57 368 37 28 259 Missed 302 | . 7 34 . 13 131 13 15 89 Deflected 11 | . . . . 1 10 . . . Hits 560 | . 24 48 . 44 237 24 13 170 Melee 15 | . . . . 4 6 . . 5 Projectile 545 | . 24 48 . 40 231 24 13 165 AOE 1 | . . . . 1 . . . . Critical Strikes 25 | . 3 2 . 2 8 6 . 4 Actively Blocked 1 | . . 1 . . . . . . Part Disruptions 5 | . . . . . . . . 5 Damage Taken 9038 | . 333 678 . 700 2894 690 310 3433 Core 1925 | . 60 104 . 71 502 53 120 1015 Absorbed by Shields . | . . . . . . . . . Redirected to Shielding 33 | . . 22 . . . . . 11 Regen/Repaired (Parts) 680 | . . . 360 40 280 . . . Core Remaining (%) 48 | 100 . . 34 . . . 12 . Volleys Fired 141 | 19 15 58 . 3 27 7 1 11 Largest 2 | 2 2 2 . 2 2 1 1 1 Hottest 108 | 70 70 100 . 108 64 33 5 40 Shots Fired 218 | 38 30 102 . 4 27 7 1 9 Gun 161 | 38 30 88 . 2 3 . . . Cannon 1 | . . . . 1 . . . . Launcher 24 | . . 2 . . 7 6 . 9 Special 32 | . . 12 . 1 17 1 1 . Kinetic 94 | 19 15 48 . 2 10 . . . Thermal 89 | 19 15 54 . 1 . . . . Explosive 15 | . . . . . . 6 . 9 Electromagnetic . | . . . . . . . . . Robot Hit Streak 17 | 9 7 17 . 1 7 14 15 2 Robot Miss Streak 5 | 5 3 3 . 1 1 . . 2 Penetration Max 1 | . . . . . 1 . . . Secondary Targets 5 | . 2 3 . . . . . . Max Gunslinging Chain 1 | . 1 1 . . . . . . Shots Hit Robots 316 | 22 19 41 . 42 87 9 10 86 Core Hits 188 | 6 9 23 . 20 57 24 5 44 Critical Kills 1 | . . . . . 1 . . . Critical Parts Destroyed 1 | . . . . . 1 . . . Critical Strikes 16 | . 1 3 . . 6 . 1 5 Burn 4 | . 1 3 . . . . . . Destroy 1 | . . . . . 1 . . . Smash 1 | . . . . . 1 . . . Sever 4 | . . . . . 2 . 1 1 Melee Attacks 279 | . . . . 49 102 2 11 115 Impact 4 | . . . . 2 2 . . . Slashing 275 | . . . . 47 100 2 11 115 Piercing . | . . . . . . . . . Sneak Attacks 24 | . . . . 9 9 . 1 5 Combat Hostiles 1 | . . . . . 1 . . . Follow-up Attacks 49 | . . . . 1 11 . 2 35 Martial Strikes 6 | . . . . 1 5 . . . Damage Inflicted 13165 | 269 268 651 . 1974 4354 684 446 4519 Guns 1189 | 269 268 549 . 23 80 . . . Cannons . | . . . . . . . . . Explosions 2786 | . . 102 . . 1129 592 . 963 Melee 9190 | . . . . 1951 3145 92 446 3556 Ramming . | . . . . . . . . . Kinetic 1892 | 118 128 414 . 23 1209 . . . Thermal 528 | 151 140 237 . . . . . . Explosive 1555 | . . . . . . 592 . 963 Electromagnetic . | . . . . . . . . . Impact 78 | . . . . 50 28 . . . Slashing 9112 | . . . . 1901 3117 92 446 3556 Piercing . | . . . . . . . . . Highest Corruption 12 | . . . . . 5 5 5 12 Average Corruption 5 | . . . . . 3 5 5 7 Corruption Purged . | . . . . . . . . . Corruption Blocked . | . . . . . . . . . Effects 31 | . . . . . 5 5 10 11 Message Errors 10 | . . . . . 1 3 5 1 Matter Fused 6 | . . . . . 1 1 2 2 Heat Flow Errors 4 | . . . . . 1 1 1 1 Energy Discharges 3 | . . . . . 1 . . 2 Parts Fused 1 | . . . . . . . 1 . Data Loss (minor) 4 | . . . . . 1 . 1 2 Data Loss (major) 2 | . . . . . . . . 2 Weapon Failures 1 | . . . . . . . . 1 Overload Shots . | . . . . . . . . . Overflow Damage 720 | . . . . 168 297 . . 255 Projectiles . | . . . . . . . . . Explosions . | . . . . . . . . . Melee 720 | . . . . 168 297 . . 255 Knockbacks 1 | . . . . 1 . . . . Impact 1 | . . . . 1 . . . . Kinetic . | . . . . . . . . . Secondary . | . . . . . . . . . Self-Inflicted Damage 33 | . . 26 . . . . . 7 Shots 2 | . . 1 . . . . . 1 Rammed . | . . . . . . . . . Targets Rammed . | . . . . . . . . . Kicked . | . . . . . . . . . Crushed . | . . . . . . . . . Highest Temperature 327 | 54 327 3 . 56 79 155 . 199 Average Temperature 73 | 16 137 3 . 30 28 83 . 92 Received Heat Transfer 1916 | . 213 126 . 254 678 99 36 510 Effects 2 | . 2 . . . . . . . Shutdowns 1 | . 1 . . . . . . . Energy Bleed 1 | . 1 . . . . . . . Siege Activations . | . . . . . . . . . Martial Activations 11 | . . . . 2 9 . . . Total Turns 160 | . . . . 38 122 . . . Longest Duration 35 | . . . . 34 35 . . . Shielding Activations . | . . . . . . . . . Robots Disrupted 1 | . . . . . 1 . . . Combat Hostiles 1 | . . . . . 1 . . . Robots Corrupted . | . . . . . . . . . Combat Hostiles . | . . . . . . . . . Parts Fried . | . . . . . . . . . Impact Corruptions 1 | . . . . 1 . . . . Robots Melted . | . . . . . . . . . Combat Hostiles . | . . . . . . . . . Parts Melted 11 | . 2 4 . 3 2 . . . Heat Transferred 1850 | 444 481 925 . . . . . . Parts Sabotaged . | . . . . . . . . . Parts Stolen . | . . . . . . . . . Parts Stripped . | . . . . . . . . . Power Chain Reactions . | . . . . . . . . . Alert | -11 -10 -10 -9 -6 -6 -6 -6 -5 ------- Run | Yrd Mat Sub Scr Fac Ext Cet Arc Fac Maximum Alert Level 4 | . . . . 2 4 2 1 . Low Security (%) 52 | 100 100 . . 81 . . 84 100 Level 1 15 | . . . . 2 36 . 15 . Level 2 16 | . . . . 15 20 100 . . Level 3 12 | . . . . . 34 . . . Level 4 2 | . . . . . 7 . . . Level 5 . | . . . . . . . . . High Security . | . . . . . . . . . Max Security . | . . . . . . . . . Peak Influence 1279 | 10 95 . . 602 1279 685 246 160 Initial 685 | . . . . . 282 685 229 37 Average 307 | . 47 . . 120 595 620 166 91 Influence Increases 4213 | 25 125 215 . 1028 1980 108 97 635 Destroy 0b10 Robot/C 2260 | . 100 160 . 460 1020 60 80 380 Destroy 0b10 Robot/NC 215 | 25 5 . . 65 55 5 5 55 Destroy Leader 318 | . 20 10 . 104 114 . . 70 Allied During Kill 835 | . . . . 141 659 23 12 . Successful Hack 80 | . . . . 61 19 . . . Disable Machine 120 | . . . . 120 . . . . Destroy Structure 235 | . . . . 47 98 20 . 70 Lose Combat Pursuer 150 | . . 45 . 30 15 . . 60 Influence Decreases 4097 | 25 80 260 . 450 1333 760 564 625 Entered New Map 1271 | . . 22 . . 296 540 344 69 Time Decay 1866 | 25 70 208 . 340 607 100 130 386 Lost Part 350 | . 10 30 . 10 80 40 10 170 Lost Ally 610 | . . . . 100 350 80 80 . Squads Dispatched 20 | . . . . 5 8 . . 7 Investigation 10 | . . . . 2 5 . . 3 Extermination 3 | . . . . 2 . . . 1 Reinforcement 5 | . . . . 1 1 . . 3 Assault 2 | . . . . . 2 . . . Garrison . | . . . . . . . . . Intercept . | . . . . . . . . . Searches Triggered . | . . . . . . . . . Construction Impeded 2 | . . . . . 1 . . 1 Haulers Reinforced 1 | . . . . 1 . . . . Active Scanning Responses . | . . . . . . . . . Cargo Convoy Interrupts 1 | . . . . . . . . 1 Stealth | -11 -10 -10 -9 -6 -6 -6 -6 -5 --------- Run | Yrd Mat Sub Scr Fac Ext Cet Arc Fac Distress Signals 5 | . . . . 1 2 1 . 1 Communications Jammed . | . . . . . . . . . Distress Signals . | . . . . . . . . . Times Spotted 162 | . 5 15 . 31 58 5 4 44 Peak Tracking Total 14 | . 5 6 . 6 7 5 3 14 Tactical Retreats 8 | . . 1 . 3 1 . . 3 Traps | -11 -10 -10 -9 -6 -6 -6 -6 -5 ------- Run | Yrd Mat Sub Scr Fac Ext Cet Arc Fac Traps Triggered 1 | . 1 . . . . . . . Indirectly . | . . . . . . . . . Trap Hack Attempts . | . . . . . . . . . Triggered . | . . . . . . . . . Disarmed . | . . . . . . . . . Reprogrammed . | . . . . . . . . . Reused . | . . . . . . . . . Traps Extracted . | . . . . . . . . . Installed . | . . . . . . . . . Triggered . | . . . . . . . . . Machines | -11 -10 -10 -9 -6 -6 -6 -6 -5 ---------- Run | Yrd Mat Sub Scr Fac Ext Cet Arc Fac Machines Disabled 10 | . . . . 8 2 . . . Max in Single Turn 1 | . . . . 1 . . . . Garrison Access 1 | . . . . 1 . . . . Machines Repaired . | . . . . . . . . . Machines Dismantled . | . . . . . . . . . Machines Sabotaged . | . . . . . . . . . Overloaded Fab Kills . | . . . . . . . . . Hacking | -11 -10 -10 -9 -6 -6 -6 -6 -5 --------- Run | Yrd Mat Sub Scr Fac Ext Cet Arc Fac Machines Accessed 33 | . 1 . 6 14 8 1 . 3 Terminals 19 | . 1 . . 10 7 1 . . Fabricators . | . . . . . . . . . Repair Stations . | . . . . . . . . . Recycling Units 6 | . . . . 2 1 . . 3 Scanalyzers 1 | . . . . 1 . . . . Garrison Access 1 | . . . . 1 . . . . Total Hacks 91 | . 3 . 32 29 17 3 . 7 Successful 52 | . . . 32 12 6 . . 2 Failed 39 | . 3 . . 17 11 3 . 5 Catastrophic 11 | . . . . 5 3 2 . 1 Database Lockouts . | . . . . . . . . . Manual 33 | . 3 . . 17 3 3 . 7 Terminals 42 | . 3 . . 21 15 3 . . Fabricators . | . . . . . . . . . Repair Stations . | . . . . . . . . . Recycling Units 13 | . . . . 4 2 . . 7 Scanalyzers 2 | . . . . 2 . . . . Garrison Access 2 | . . . . 2 . . . . Terminal Hacks 40 | . . . 32 3 5 . . . Record 26 | . . . 24 . 2 . . . Robot Analysis 7 | . . . 7 . . . . . Open Door 3 | . . . 1 1 1 . . . Alert Level 1 | . . . . . 1 . . . Locate Traps 1 | . . . . 1 . . . . Registered Prototypes 1 | . . . . 1 . . . . Zone Layout 1 | . . . . . 1 . . . Fabricator Hacks . | . . . . . . . . . Repair Station Hacks . | . . . . . . . . . Recycling Unit Hacks . | . . . . . . . . . Scanalyzer 1 | . . . . 1 . . . . Retrieve Study 1 | . . . . 1 . . . . Garrison Access Hacks 1 | . . . . 1 . . . . Seal Access 1 | . . . . 1 . . . . Unauthorized Hacks 10 | . . . . 7 1 . . 2 Terminals 5 | . . . . 5 . . . . Skim 5 | . . . . 5 . . . . Fabricators . | . . . . . . . . . Repair Stations . | . . . . . . . . . Recycling Units 5 | . . . . 2 1 . . 2 Fedlink 5 | . . . . 2 1 . . 2 Scanalyzers . | . . . . . . . . . Garrison Access . | . . . . . . . . . Data Cores Recovered 1 | . . . . 1 . . . . Used 1 | . . . . 1 . . . . Hacking Detections 20 | . 1 . . 8 8 1 . 2 Full Trace Events 4 | . . . . . 3 . . 1 Feedback Events 1 | . . . . . 1 . . . Corruption 1 | . . . . . 1 . . . Feedback Blocked . | . . . . . . . . . Robot Schematics Acquired . | . . . . . . . . . Robots Built . | . . . . . . . . . Authchips . | . . . . . . . . . Time . | . . . . . . . . . Total Robot Build Rating . | . . . . . . . . . Part Schematics Acquired . | . . . . . . . . . Parts Built . | . . . . . . . . . Authchips . | . . . . . . . . . Time . | . . . . . . . . . Total Part Build Rating . | . . . . . . . . . Part Studies Acquired 1 | . . . . 1 . . . . Parts Repaired . | . . . . . . . . . Time . | . . . . . . . . . Parts Recycled . | . . . . . . . . . Recycled Matter . | . . . . . . . . . Retrieved Matter . | . . . . . . . . . Retrieved Components . | . . . . . . . . . Parts Scanalyzed . | . . . . . . . . . Part Schematics Acquired . | . . . . . . . . . Parts Damaged . | . . . . . . . . . Bothacking | -11 -10 -10 -9 -6 -6 -6 -6 -5 ------------ Run | Yrd Mat Sub Scr Fac Ext Cet Arc Fac Used RIF Installer . | . . . . . . . . . Robots Hacked 3 | . . . . 1 1 . 1 . Non-combat 1 | . . . . . . . 1 . Combat 1 | . . . . . 1 . . . Robot Hacks Applied 2 | . . . . . 1 . 1 . parse_system 1 | . . . . . 1 . . . check_alert 1 | . . . . . . . 1 . Manual 1 | . . . . 1 . . . . Relay Couplers Released . | . . . . . . . . . Fabnet Peak Effective % . | . . . . . . . . . Robots Rewired 27 | . . . . . 27 . . . Allies Hacked . | . . . . . . . . . Hacks Repelled . | . . . . . . . . . Allies | -11 -10 -10 -9 -6 -6 -6 -6 -5 -------- Run | Yrd Mat Sub Scr Fac Ext Cet Arc Fac Total Allies 35 | . . . 1 6 28 . . . Largest Group 13 | . . . 1 5 13 8 4 . Highest-Rated Group 404 | . . . 45 238 404 228 105 . Highest-Rated Ally 50 | . . . 45 50 39 39 34 . Initial UFD Resources 44 | . . . . 24 38 40 40 44 Total Orders 1 | . . . . 1 . . . . STAY 1 | . . . . 1 . . . . Ally Attacks 458 | . . . . 124 304 17 13 . Total Damage 8560 | . . . . 2870 5086 336 268 . Kills 67 | . . . . 33 30 2 2 . Allies Corrupted 1 | . . . . . 1 . . . Allies Melted 2 | . . . . 1 1 . . . Intel | -11 -10 -10 -9 -6 -6 -6 -6 -5 ------- Run | Yrd Mat Sub Scr Fac Ext Cet Arc Fac Active Infowar (turns) 3090 | . . . . 1499 1591 . . . Sensors 3090 | . . . . 1499 1591 . . . Robot Analysis Total 7 | . . . 7 . . . . . Derelict Logs Recovered 6 | . . 1 5 . . . . . Drone Launches . | . . . . . . . . . Drone Recoveries . | . . . . . . . . . Exploration | -11 -10 -10 -9 -6 -6 -6 -6 -5 ------------- Run | Yrd Mat Sub Scr Fac Ext Cet Arc Fac Turns Passed 11613 | 147 202 2238 4069 1604 1963 208 271 911 Spaces Moved 6427 | 74 90 1281 2184 832 1108 117 186 555 Core 78 | . . . . . . . . 78 Treads 3911 | . . 1078 2184 649 . . . . Legs 2404 | 74 90 203 . 183 1108 117 186 443 Wheels . | . . . . . . . . . Hover . | . . . . . . . . . Flight 34 | . . . . . . . . 34 Fastest Speed 35 | 120 120 120 160 117 116 122 122 35 Average Speed 150 | 120 121 153 182 147 119 122 122 111 Slowest Speed 260 | 120 190 160 260 234 234 123 122 193 Overloaded Moves 24 | . . . . 10 14 . . . Propulsion Burnouts . | . . . . . . . . . Robots Hopped 4 | . . . . . . . . 4 Potential Cave-ins . | . . . . . . . . . Cave-ins Triggered . | . . . . . . . . . Exploration Rate (%) 47 | 3 25 55 91 16 87 48 86 13 Regions Visited 8 Branch Regions 5 Pre-discovered Areas 8 | . . . 3 5 . . . . Known Exits Taken 4 | . . . . 1 1 1 1 . Unknown Exits Taken 4 | 1 1 1 1 . . . . . Scrap Searched 15 | . . 10 5 . . . . . Spaces Dug 5 | . . . . 1 . . . 4 Terrain Destroyed 214 | . . 28 . 1 100 43 . 42 Melee 5 | . . . . 1 . . . 4 Projectile 1 | . . . . . 1 . . . AOE 208 | . . 28 . . 99 43 . 38 Terrain Rammed . | . . . . . . . . . Walls Destroyed . | . . . . . . . . . Machines Disabled . | . . . . . . . . . Actions | -11 -10 -10 -9 -6 -6 -6 -6 -5 --------- Run | Yrd Mat Sub Scr Fac Ext Cet Arc Fac Total 7870 | 94 152 1422 2278 1153 1662 172 215 722 Wait 601 | . 43 51 24 214 177 24 15 53 Move 6411 | 73 89 1280 2183 831 1107 116 185 547 Hop 4 | . . . . . . . . 4 Pick Up 82 | 1 3 13 27 20 6 5 2 5 Fast Attach 37 | . 1 . 3 6 20 3 1 3 Attach 40 | . 1 5 1 12 4 5 . 12 Detach 13 | . . 1 1 2 2 2 . 5 Swap 59 | . . 11 9 3 30 3 2 1 Drop 93 | 1 . 3 30 16 28 5 1 9 Fire 141 | 19 15 58 . 3 27 7 1 11 Melee 210 | . . . . 46 82 2 8 72 Ram . | . . . . . . . . . Kick . | . . . . . . . . . Crush . | . . . . . . . . . Escape Stasis . | . . . . . . . . . Rewire 179 | . . . . . 179 . . . Trap . | . . . . . . . . . Miscellaneous . | . . . . . . . . . Route ------- -11/Scrapyard -10/Materials -10/Subcaves (discovered 3 exits: [*Mat x2] / *Scr) -9/Scraptown (discovered 2 exits: *Fac x2) -6/Factory (discovered 2 exits: *Low / *Ext) -6/Extension (discovered 2 exits: *Fac / *Cet) -6/Cetus -6/Archives (discovered 3 exits: *Fac / *Hub x2) -5/Factory (discovered 3 exits: [*Fac] / Upp x2) History --------- Turn | Location | Event 5 | -11/Scrapyard | Discovered new exit (range 3) 148 | -11/Scrapyard | Entered Materials 309 | -10/Materials | Build established: Mutant 333 | -10/Materials | Discovered new exit (range 6) 350 | -10/Materials | Entered Subcaves 351 | -10/Subcaves | Approached by a straggling Scientist 402 | -10/Subcaves | Lost 3 parts (1p1n1w) 676 | -10/Subcaves | Scientist uncovered a shortcut to Scraptown 691 | -10/Subcaves | Core integrity fell below 50% 1211 | -10/Subcaves | Discovered new exit (range 15) 1492 | -10/Subcaves | Shifting Twisted Machinery released Scrap Shield 1504 | -10/Subcaves | Shifting Twisted Machinery released Riot Gun 1617 | -10/Subcaves | Shifting Twisted Machinery released Mak. Thermal Plating 1624 | -10/Subcaves | Shifting Twisted Machinery released Sub. Power Source 1625 | -10/Subcaves | Discovered new exit (range 9) 2321 | -10/Subcaves | Disturbed a concealed Subdweller 2588 | -10/Subcaves | Entered Scraptown 2681 | -9/Scraptown | Visited Cyclists 2755 | -9/Scraptown | Visited Symbiants 2819 | -9/Scraptown | Scanned Subdweller tech in exchange for log data 2822 | -9/Scraptown | Learned location of Armory (-4) 2825 | -9/Scraptown | Learned Research security intel 2828 | -9/Scraptown | Learned Factory stockpile data 2849 | -9/Scraptown | Discovered new exit (range 13) 3496 | -9/Scraptown | Visited TADAMA 3555 | -9/Scraptown | Visited SPCMW 3619 | -9/Scraptown | Visited Shadow of the Wyrm 3659 | -9/Scraptown | Visited UFD Registry 3659 | -9/Scraptown | Registered with UFD as "Bulletcell" 3682 | -9/Scraptown | Visited CR-KLE's Repair Center 3693 | -9/Scraptown | CR-KLE repaired 7 parts 3810 | -9/Scraptown | Guru changed UFD alias to "Macestep" 3973 | -9/Scraptown | Visited Chapter 10 4013 | -9/Scraptown | Visited Sword Containment 4048 | -9/Scraptown | Visited Junk Repository 4128 | -9/Scraptown | Visited Junk Repository 4247 | -9/Scraptown | Visited Analyses Database 4362 | -9/Scraptown | Visited Abandonware Association 4401 | -9/Scraptown | Learned abandonware demo "REPAIR.EXE" 4476 | -9/Scraptown | Visited Scrapoid Pod Storage 4513 | -9/Scraptown | Visited Scrap Suit Storage 4591 | -9/Scraptown | Visited Botcube Research 4609 | -9/Scraptown | Found Botcube 5828 | -9/Scraptown | Botcube activated 5848 | -9/Scraptown | Botcube completed mutation into treaded form, armed with 1 gun, 1 cannon 5887 | -9/Scraptown | Delivered Scrap Shield to a Scientist 6116 | -9/Scraptown | Found Scrapoid Pod 6182 | -9/Scraptown | Visited Supply Room 6317 | -9/Scraptown | Entered Cyclist Reading Room 6323 | -9/Scraptown | Learned location of Zion (-7) 6453 | -9/Scraptown | Found Prototype Slashing Weapon 6534 | -9/Scraptown | Met Optimus 6534 | -9/Scraptown | Accepted into 0bPrime 6647 | -9/Scraptown | Discovered new exit (range 5) 6657 | -9/Scraptown | Entered Factory 6657 | -6/Factory | Accompanied by 1 ally 6657 | -6/Factory | Evolved 8 slots: Propulsion x3, Utility x4, Weapon x1 6658 | -6/Factory | Identified exit to Lower Caves 6659 | -6/Factory | Identified Companion Sword 7279 | -6/Factory | Learned Extension interactive machine intel 7352 | -6/Factory | Learned location of Proximity Caves (-6) 7373 | -6/Factory | Learned Extension security intel 7386 | -6/Factory | Learned location of Proximity Caves (-5) 7387 | -6/Factory | Identified exit to Extension 7396 | -6/Factory | Learned 4 Extension zone layouts 7416 | -6/Factory | Loaded intel: 8 recycling unit locations 7448 | -6/Factory | Learned location of 1 exit from Hub_04(d) 7920 | -6/Factory | Scrapoid Pod released 06F06-D (x5) 7950 | -6/Factory | Loaded intel: 8 recycling unit locations 8044 | -6/Factory | Assembled infested ambush trap array 8060 | -6/Factory | Learned location of Protoforge (-2) 8136 | -6/Factory | Lost 4 allies 8261 | -6/Factory | Entered Extension 8261 | -6/Extension | Accompanied by 1 ally 8262 | -6/Extension | Identified exit to Factory 8262 | -6/Extension | Identified exit to Cetus 8264 | -6/Extension | Loaded intel: 10 interactive machine locations 8387 | -6/Extension | Build established: Scavenger-Gladiator 8412 | -6/Extension | Loaded intel: 1 recycling unit location 8906 | -6/Extension | Build established: Commander-Gladiator 9256 | -6/Extension | Spotted B-75 Beast 9276 | -6/Extension | Spotted B-75 Beast 9277 | -6/Extension | Allies destroyed B-75 Beast 9289 | -6/Extension | Allies destroyed B-75 Beast 9311 | -6/Extension | First assault squad dispatched 9324 | -6/Extension | Lost 6 allies 9419 | -6/Extension | Lost 4 allies 9771 | -6/Extension | Rescued a captive Derelict 9853 | -6/Extension | Core integrity fell below 50% 9879 | -6/Extension | Destroyed 7 combat bots 9900 | -6/Extension | Lost 7 parts (1p3n3u) 10158 | -6/Extension | Lost 3 allies 10224 | -6/Extension | Entered Cetus 10224 | -6/Cetus | Accompanied by 8 allies 10241 | -6/Cetus | Spotted Cetus Guard 10241 | -6/Cetus | Spotted Cetus Guard 10243 | -6/Cetus | Spotted Cetus Guard 10243 | -6/Cetus | Spotted Cetus Guard 10246 | -6/Cetus | Attached CPS modules to Cetus Guard 10259 | -6/Cetus | Allies destroyed Cetus Guard 10266 | -6/Cetus | Allies destroyed Cetus Guard 10277 | -6/Cetus | Destroyed Cetus Guard 10285 | -6/Cetus | Lost 4 allies 10292 | -6/Cetus | Lost 4 parts (3n1w) 10389 | -6/Cetus | Discovered new exit (range 16) 10406 | -6/Cetus | Identified exit to Archives 10432 | -6/Cetus | Entered Archives 10432 | -6/Archives | Accompanied by 4 allies 10460 | -6/Archives | Core integrity fell below 20% 10511 | -6/Archives | Lost 4 allies 10557 | -6/Archives | Build established: Scavenger-Gladiator 10568 | -6/Archives | Unable to access archive contents 10580 | -6/Archives | Discovered new exit (range 13) 10604 | -6/Archives | Identified exit to Hub_04(d) 10626 | -6/Archives | Discovered exit to Hub_04(d) (range 15) 10658 | -6/Archives | Discovered exit to Factory (range 16) 10703 | -6/Archives | Entered Factory 10703 | -5/Factory | Evolved 2 slots: Power x1, Weapon x1 10704 | -5/Factory | Identified exit to Upper Caves 11050 | -5/Factory | Loaded intel: 8 recycling unit locations 11499 | -5/Factory | Spotted B-75 Beast 11524 | -5/Factory | Discovered new exit (range 16) 11550 | -5/Factory | Core integrity fell below 50% 11560 | -5/Factory | Released all parts (6) 11568 | -5/Factory | Cargo convoy interrupted 11568 | -5/Factory | System corruption reached 10% 11587 | -5/Factory | Lost 13 parts (2p7n2u2w) 11612 | -5/Factory | Core integrity fell below 20% 11614 | -5/Factory | Destroyed by H-66 Slayer with Gauss Rifle Last Messages --------------- 11579_ C-45 Heavy ARC bursts open, deploying its payload. 11579_ X-77 Beamer unfolds itself. 11579_ H-66 Slayer unfolds itself. 11579_ E-15 Imp unfolds itself. 11579_ Penetrated by Slug. 11579_ K-01 Serf destroyed. 11579_ Penetrated by Slug. 11580_ E-15 Imp destroyed. 11580_ P-70 Sage resets X-72 Disruptor, system corruption cleaned. 11581_ K-01 Serf collects debris. 11597_ E-15 Imp destroyed. 11599_ Acquired Cesium-ion Thruster. 11600_ Acquired 15 matter. 11601_ Acquired Propulsion Shielding. 11610_ Matter Pump disabled. 11611_ Penetrated by Slug. 11613_ Cesium-ion Thruster destroyed. 11614_ Penetrated by Slug. Map ----- +----------------------------------------------------+ | ????????????????????????? %= """ | | ???????????????????????### [ ##=% | | ?????????? #####+######## % #??# | | ?????????? ^ ! #???# | | ??????????? % #????#%##### !! | | ??????????? "" """ #???????#%#???? !! | | ?????????? "F ""% #????####/#####? | | ????????? "" "%%%% "#####????# =[!=%*#?? | | ????????? "" %%#?????????#| % |#??? | | ??????"" """ ########### """ " ?? " | | ??????"" ""[ # # """"" / " | | ?????? """ # [ # """"" # " | | ???????" # # # | | ???????? """ """ # # """ #? | | ??????"" """ """ # # """"" #??# # | | ?????? """ ""% + """ """ # """?? =#??? # | | ??????"" # """ """?# ????? #????## | | ?????""" """ """ R# """ ""??##?????###?????? | | ?????""" """ """ #+######??############??## | | ??? """ """ #???????# # | | ??? ?""" R #???????# """"""" # | | ??# """ """ """ #???????# """"""" # | | ??# """ """ %"" #???????# """"""" # | | ??? """ "%"BBk #???????# """"""" # | | ?????""" x BB% #??????## # | | """ xh = h %@################+#+##### | | """ ##;x!h % %%% "%" #???? | | ######R###########+##### #???? | | """ #??# %%% !#??# [%% = %# #???? | | """ #??# % #??# "" "" # #???? | | """ #??# """ #??# "" " # #???? | | #??# "Y #??# """ """ # #???? | | """ #??# """ #??# """ """ # ##### | | """ #??# #??# """ """ # | | """H ##?########??# # | | "#???????????# = ! # | | """ # #????????######### """""""" | | T" # #????????????????# | | """ #?! #????????????????# """""""" | | #?? ?????????????????# | | #??? #????????????????# """""""" | | ##+#### #???? +????????????????# | | ###########?????#????????????????# """""""" | | #????????????????????????????????+ ?????? | | #????????????????????????????????# ??????? | | #????????????????????????????????? ??????? | | """" #????????????????????????????????? ??????? | | """" #????????????????????????????????? ???????? | | """" #??????????????????????????????????????????? | | """" #??????????????????????????????????????????? | +----------------------------------------------------+ Best States ------------- Heat Dissipation 56 Coolant Potential 65 Energy Generation 38 Energy Capacity 410 Matter Stores 300 Matter Capacity 300 Sight Range 16 Robot Scan Range 15 Terrain Scan Density 10 Armor Coverage 450 Core Shielding 20 Propulsion Shielding 33 Melee Speed Boost 40 Evasion (%) 63 Melee Accuracy 6 Recoil Reduction 5 Item Schematics ----------------- None Robot Schematics ------------------ None Fabricated ------------ Nothing Repaired ---------- Nothing Studied --------- Plasma Cannon | -6/Factory | Hacked Alien Tech Used ----------------- None Achievements -------------- Frankenstein Physics Protects Challenges ------------ None Game ------ Seed SwordLightChaingun Manual? 0 Play Time 01:39:30 Cumulative 62.8 hours Start 2026.09.18 @ 04:29:22 End 2026.09.18 @ 06:10:29 Sessions 1 Manual Loads 0 Difficulty Rogue Special Mode None Game No. 61 Rogue 58 Adventurer 3 Explorer 0 Win Type - Total 3 Types 2/1/0/0/0/0/0/0/0/0 Lore% 53 Gallery% 43 Achievement% 45 Wizard Run 0 Options --------- Layout 1 ASCII 0 Keyboard 0 Movement Mouse Keybinds 0 Fullscreen 1 Font 32/SmallcapsGlow Map View 50x35 Zoom Use 0% Tactical HUD 1 Map Filters NONE Filters NONE Steam 1 RUN: 049fdff1-0bf6-4f6e-926f-f340a711c65a